Cogmind - Beta 15 @@@ ROGUE MODE // 2025.08.01 @ 10:16:58 Player: shapeshifter Result: Destroyed by G-47 Trooper with Particle Gun Performance ------------- Evolutions (3) 1500 Regions Visited (7) 1400 Robots Destroyed (46) 230 Value Destroyed (1386) 1386 Prototype IDs (24) 480 Alien Tech Used (0) 0 Bonus (800) 800 TOTAL SCORE: 5796 Bonus ------- Entered DSFs 500 Aligned with FarCom 300 Cogmind --------- Core Integrity 0/700 Matter 64/300 Energy 30/100 System Corruption 0% Temperature Cool (9) Movement Treading (160) Location -7/DSF Parts ------- > --- POWER (2) -------- (None) > --- PROPULSION (4) --- Light Treads > --- UTILITY (5) ------ Medium Storage Unit Core Shielding > --- WEAPON (2) ------- Heavy Particle Cannon > --- INVENTORY (10) --- Improved Deuterium Engine High-capacity Matter Pod (0) Improved Sensor Array Weapon Cycler Weapon Cycler Cloak of Protection Hardlight Generator Remote Datajack Peak State ------------ > --- POWER ------------ Improved Deuterium Engine Improved Deuterium Engine > --- PROPULSION ------- Carbon-fiber Leg Carbon-fiber Leg Carbon-fiber Leg Carbon-fiber Leg > --- UTILITY ---------- High-capacity Storage Unit Seismic Detector Improved Medium Armor Plating Improved Medium Armor Plating Improved Medium Armor Plating > --- WEAPON ----------- Minigun Rocket Launcher > --- INVENTORY -------- Improved Deuterium Engine Improved Deuterium Engine Advanced Treads Wheel Compact Wheel High-capacity Battery High-capacity Matter Pod Weapon Cycler Weapon Cycler Weapon Cycler Cloak of Protection Core Shielding Core Shielding Improved Medium Armor Plating Rocket Launcher Remote Datajack Remote Datajack [Rating: 44] Favorites ----------- Power Cooled Ion Engine Engine Cooled Ion Engine Propulsion Light Treads Treads Light Treads Leg Carbon-fiber Leg Wheel Compact Wheel Utility Seismic Detector Device Seismic Detector Storage High-capacity Storage Unit Protection Improved Medium Armor Plating Weapon Medium Laser Energy Gun Medium Laser Energy Cannon Heavy Particle Cannon Ballistic Gun Minigun Launcher Rocket Launcher Special Weapon Mining Laser Slashing Weapon Great Axe Build | -11 -10 -10 -10 -9 -8 -7 -7 ------- Run | Yrd Mat Min Exi Min Mat Fac DSF Slots Evolved 6 | . . . . . 4 2 . Power 1 | . . . . . 1 . . Propulsion 2 | . . . . . . 2 . Utility 3 | . . . . . 3 . . Weapon . | . . . . . . . . Parts Attached 48 | 6 3 1 1 6 12 4 15 Power 7 | 1 1 . . 1 3 . 1 Engine 7 | 1 1 . . 1 3 . 1 Core . | . . . . . . . . Reactor . | . . . . . . . . Propulsion 11 | 2 . 1 . 1 1 4 2 Treads 4 | 2 . . . . . . 2 Leg 4 | . . . . . . 4 . Wheel 3 | . . 1 . 1 1 . . Hover . | . . . . . . . . Flight . | . . . . . . . . Utility 18 | 1 2 . 1 1 7 . 6 Device 4 | . 1 . . . 3 . . Storage 4 | 1 1 . 1 . . . 1 Processor . | . . . . . . . . Hackware . | . . . . . . . . Protection 10 | . . . . 1 4 . 5 Artifact . | . . . . . . . . Weapon 12 | 2 . . . 3 1 . 6 Energy Gun 2 | 2 . . . . . . . Energy Cannon 1 | . . . . . . . 1 Ballistic Gun 5 | . . . . 1 1 . 3 Ballistic Cannon . | . . . . . . . . Launcher 2 | . . . . 1 . . 1 Special Weapon 1 | . . . . 1 . . . Impact Weapon . | . . . . . . . . Slashing Weapon 1 | . . . . . . . 1 Piercing Weapon . | . . . . . . . . Special Melee Weapon . | . . . . . . . . Unidentified Prototypes 1 | . 1 . . . . . . Parts Lost 32 | . . . . 10 1 . 21 Power 3 | . . . . 1 1 . 1 Propulsion 9 | . . . . 3 . . 6 Utility 10 | . . . . 2 . . 8 Weapon 10 | . . . . 4 . . 6 Highest Loss Streak 12 | . . . . 9 1 . 12 To Critical Strikes . | . . . . . . . . Average Backups 11 | 3 9 9 10 6 15 19 15 Power . | . 1 1 1 . . 2 1 Propulsion 1 | 1 1 1 1 . 2 2 1 Utility 5 | . 3 4 4 4 8 9 7 Weapon 3 | . 2 3 4 1 1 3 4 Tool/Special . | . . . . . . . . Unused Backups 27 | . 4 1 . . 9 6 7 Power 2 | . 1 . . . . . 1 Propulsion 2 | . 1 . . . 1 . . Utility 15 | . 1 . . . 6 3 5 Weapon 4 | . 1 1 . . . 2 . Tool/Special 4 | . . . . . 2 1 1 Average Slot Usage (%) 86 | . 99 100 77 63 84 93 65 Engine 13 | . 14 14 14 12 11 15 7 Treads 18 | . 28 21 28 3 . . 2 Leg 3 | . . . . . . 29 13 Wheel 3 | . . 7 . 12 14 . . Device 12 | . 13 14 14 1 16 7 3 Storage 12 | . 14 14 14 14 9 7 7 Protection 6 | . . . . 2 17 23 18 Energy Gun 12 | . 28 28 5 3 . . . Ballistic Gun 2 | . . . . 2 6 7 7 Launcher 2 | . . . . 8 9 1 . Peak Build Rating 44 | 6 10 10 10 10 38 44 43 Average Rating 15 | 4 8 9 8 7 27 43 30 On Entrance 15 | . 6 10 10 9 8 35 43 Naked Turns . | . . . . . . . . Heaviest Build 89 | 14 23 23 49 52 89 89 85 Greatest Support 60 | 40 40 40 40 26 26 60 60 Greatest Overweight (x) 24 | . . 2 1 5 4 1 24 Average Overweight (x) . | . . 1 . 2 2 1 1 Largest Inventory Capacity 20 | 8 10 10 20 20 20 20 20 Average Capacity 14 | 7 9 10 16 20 20 20 19 Most Carried 20 | 7 10 10 13 12 20 20 20 Average Carried 11 | 3 9 9 10 6 15 19 15 Final Capacity 20 | 8 10 10 20 20 20 20 10 Final Carried 20 | 7 10 10 13 5 19 20 8 Class Distribution -------------------- 100% | Mutant Dominant Class ---------------- Mutant | -10/Materials Mutant | -10/Mines Mutant | -10/Exiles Mutant | -9/Mines Mutant | -8/Materials Mutant | -7/Factory Mutant | -7/DSF Resources | -11 -10 -10 -10 -9 -8 -7 -7 ----------- Run | Yrd Mat Min Exi Min Mat Fac DSF Matter Collected 1370 | 237 247 6 . 106 412 . 362 Remotely . | . . . . . . . . Salvage Created 1225 | 21 382 37 . 183 359 . 243 Parts 62 | 4 14 5 . 8 26 . 5 Haulers Intercepted 1 | . . . . . 1 . . Recyclers Shooed 5 | 2 3 . . . . . . Parts Field Recycled . | . . . . . . . . Retrieved Matter . | . . . . . . . . Parts Self-Destructed . | . . . . . . . . Prevented . | . . . . . . . . Kills | -11 -10 -10 -10 -9 -8 -7 -7 ------- Run | Yrd Mat Min Exi Min Mat Fac DSF Combat Hostiles Destroyed 35 | . 6 2 . 7 14 . 6 Melee 1 | . . . . . . . 1 Guns 14 | . 5 2 . 2 1 . 4 Cannons 1 | . . . . . . . 1 AOE 18 | . . . . 5 13 . . Classes Destroyed 11 | 1 3 1 . . 4 . 2 Builder 2 | . . . . . 2 . . Tunneler 1 | 1 . . . . . . . Hauler 1 | . . . . . 1 . . Recycler 2 | . 1 . . 1 . . . Operator 1 | . . . . . 1 . . Watcher 4 | . 2 . . . 2 . . Swarmer 9 | . . 2 . 4 3 . . Grunt 23 | . 6 . . 3 10 . 4 Brawler 1 | . . . . . . . 1 Sentry 1 | . . . . . 1 . . Heavy 1 | . . . . . . . 1 Best Kill Streak 4 | 1 2 2 . 4 4 . 3 Combat Bots Only 4 | . 2 2 . 4 3 . 3 Max Kills in Single Turn 3 | 1 2 1 . 3 3 . 1 Gunslinging . | . . . . . . . . Exploded 3 | . . . . 3 3 . . Melee 1 | . . . . . . . 1 Uniques/NPCs Destroyed . | . . . . . . . . Combat | -11 -10 -10 -10 -9 -8 -7 -7 -------- Run | Yrd Mat Min Exi Min Mat Fac DSF Hostile Shots Fired 440 | . 43 2 . 55 41 . 299 Missed 131 | . 17 . . 11 21 . 82 Hits 309 | . 26 2 . 44 20 . 217 Melee 9 | . . . . . . . 9 Projectile 300 | . 26 2 . 44 20 . 208 Critical Strikes 13 | . . . . 1 1 . 11 Actively Blocked 1 | . . . . . . . 1 Damage Taken 6126 | . 364 40 . 686 662 . 4374 Core 1148 | . 73 . . 138 229 . 708 Absorbed by Shields 79 | . . . . . . . 79 Redirected to Shielding 101 | . . . . . . . 101 Core Remaining (%) 57 | 100 . . . 15 58 . . Volleys Fired 146 | 6 25 2 . 27 37 . 49 Largest 2 | 2 2 2 . 2 2 . 2 Hottest 100 | 100 100 100 . 100 58 . 75 Shots Fired 205 | 12 51 4 . 36 48 . 54 Gun 161 | 12 51 4 . 32 15 . 47 Cannon 7 | . . . . . . . 7 Launcher 36 | . . . . 3 33 . . Special 1 | . . . . 1 . . . Kinetic 79 | . . . . 17 15 . 47 Thermal 90 | 12 51 4 . 16 . . 7 Explosive 36 | . . . . 3 33 . . Electromagnetic . | . . . . . . . . Robot Hit Streak 9 | 3 6 2 . 6 5 . 9 Robot Miss Streak 4 | 4 3 1 . 3 3 . 4 Penetration Max . | . . . . . . . . Secondary Targets 1 | . 1 . . . . . . Max Gunslinging Chain 1 | . 1 . . . . . . Shots Hit Robots 135 | 5 32 2 . 24 20 . 52 Core Hits 97 | 1 18 2 . 9 35 1 31 Critical Kills . | . . . . . . . . Critical Parts Destroyed . | . . . . . . . . Critical Strikes 5 | . 1 . . 1 . . 3 Burn 2 | . 1 . . 1 . . . Sever 3 | . . . . . . . 3 Melee Attacks 9 | . . . . . . . 9 Impact . | . . . . . . . . Slashing 9 | . . . . . . . 9 Piercing . | . . . . . . . . Sneak Attacks . | . . . . . . . . Combat Hostiles . | . . . . . . . . Follow-up Attacks . | . . . . . . . . Damage Inflicted 4365 | 63 454 24 . 594 1966 9 1255 Guns 1781 | 63 411 24 . 241 148 . 894 Cannons 100 | . . . . . . . 100 Explosions 2147 | . . . . 329 1818 . . Melee 261 | . . . . . . . 261 Ramming 52 | . 43 . . . . 9 . Kinetic 1156 | . . . . 114 148 . 894 Thermal 749 | 63 411 24 . 151 . . 100 Explosive 2147 | . . . . 329 1818 . . Electromagnetic . | . . . . . . . . Impact . | . . . . . . . . Slashing 261 | . . . . . . . 261 Piercing . | . . . . . . . . Highest Corruption 3 | . 3 3 3 3 . . . Average Corruption 2 | . 2 3 3 3 . . . Corruption Purged . | . . . . . . . . Corruption Blocked . | . . . . . . . . Effects 44 | . 20 1 22 1 . . . Message Errors 10 | . 5 1 4 . . . . Matter Fused 12 | . 4 . 7 1 . . . Heat Flow Errors 6 | . 3 . 3 . . . . Energy Discharges 4 | . 2 . 2 . . . . Data Loss (minor) 8 | . 2 . 6 . . . . Data Loss (major) 1 | . 1 . . . . . . Misfires 1 | . 1 . . . . . . Alerts 2 | . 2 . . . . . . Overload Shots . | . . . . . . . . Overflow Damage 111 | . . . . 67 44 . . Projectiles . | . . . . . . . . Explosions 111 | . . . . 67 44 . . Melee . | . . . . . . . . Knockbacks 1 | . 1 . . . . . . Impact 1 | . 1 . . . . . . Kinetic . | . . . . . . . . Secondary . | . . . . . . . . Self-Inflicted Damage 129 | . . . . 101 28 . . Shots 7 | . . . . 3 4 . . Rammed 7 | . 7 . . . . . . Targets Rammed 9 | . 8 . . . . 1 . Kicked 1 | . . . . . . 1 . Crushed 1 | . 1 . . . . . . Highest Temperature 378 | 156 378 66 134 375 64 . 13 Average Temperature 113 | 61 118 33 69 228 18 . 5 Received Heat Transfer 2217 | . 177 . . 348 162 . 1530 Effects 7 | . 2 . . 5 . . . Energy Bleed 1 | . 1 . . . . . . Interference 3 | . 1 . . 2 . . . Matter Decay 1 | . . . . 1 . . . Damage (minor) 2 | . . . . 2 . . . Siege Activations . | . . . . . . . . Martial Activations . | . . . . . . . . Shielding Activations . | . . . . . . . . Robots Disrupted . | . . . . . . . . Combat Hostiles . | . . . . . . . . Robots Corrupted . | . . . . . . . . Combat Hostiles . | . . . . . . . . Parts Fried . | . . . . . . . . Impact Corruptions . | . . . . . . . . Robots Melted 1 | . 1 . . . . . . Combat Hostiles 1 | . 1 . . . . . . Parts Melted 4 | . 3 . . 1 . . . Heat Transferred 2196 | 185 1295 74 . 494 . . 148 Parts Sabotaged . | . . . . . . . . Parts Stolen . | . . . . . . . . Parts Stripped . | . . . . . . . . Power Chain Reactions . | . . . . . . . . Alert | -11 -10 -10 -10 -9 -8 -7 -7 ------- Run | Yrd Mat Min Exi Min Mat Fac DSF Maximum Alert Level 1 | . . . . . 1 . . Low Security (%) 95 | 100 100 100 . 100 77 100 100 Level 1 4 | . . . . . 22 . . Level 2 . | . . . . . . . . Level 3 . | . . . . . . . . Level 4 . | . . . . . . . . Level 5 . | . . . . . . . . High Security . | . . . . . . . . Max Security . | . . . . . . . . Peak Influence 340 | 5 52 40 . 132 340 154 110 Initial 154 | . . . . . 27 154 . Average 40 | . 8 29 . 62 112 76 14 Influence Increases 1272 | 5 191 40 . 192 594 5 245 Destroy 0b10 Robot/C 700 | . 120 40 . 140 280 . 120 Destroy 0b10 Robot/NC 55 | 5 15 . . 5 30 . . Destroy Leader 150 | . 44 . . 20 66 . 20 Successful Hack 28 | . 12 . . . 11 5 . Disable Machine 30 | . . . . . 30 . . Destroy Structure 189 | . . . . 27 162 . . Partial Spotted 15 | . . . . . 15 . . Lose Combat Pursuer 105 | . . . . . . . 105 Influence Decreases 1172 | 5 191 20 20 120 326 345 145 Entered New Map 251 | . . . 20 . 45 186 . Time Decay 726 | 5 191 20 . 80 271 159 . Lost Part 195 | . . . . 40 10 . 145 Squads Dispatched 7 | . 3 . . . 3 . 1 Investigation 3 | . 2 . . . 1 . . Extermination . | . . . . . . . . Reinforcement 4 | . 1 . . . 2 . 1 Assault . | . . . . . . . . Garrison . | . . . . . . . . Intercept . | . . . . . . . . Searches Triggered . | . . . . . . . . Construction Impeded 1 | . . . . . 1 . . Haulers Reinforced . | . . . . . . . . Active Scanning Responses . | . . . . . . . . Cargo Convoy Interrupts . | . . . . . . . . Stealth | -11 -10 -10 -10 -9 -8 -7 -7 --------- Run | Yrd Mat Min Exi Min Mat Fac DSF Distress Signals 4 | . 2 . . . 2 . . Communications Jammed . | . . . . . . . . Distress Signals . | . . . . . . . . Times Spotted 57 | . 11 2 . 7 19 . 18 Peak Tracking Total 9 | . 2 2 . 4 4 . 9 Tactical Retreats 5 | . . . . . . . 5 Traps | -11 -10 -10 -10 -9 -8 -7 -7 ------- Run | Yrd Mat Min Exi Min Mat Fac DSF Traps Triggered 8 | . 5 . . . . . 3 Indirectly . | . . . . . . . . Trap Hack Attempts . | . . . . . . . . Triggered . | . . . . . . . . Disarmed . | . . . . . . . . Reprogrammed . | . . . . . . . . Reused . | . . . . . . . . Traps Extracted . | . . . . . . . . Installed . | . . . . . . . . Triggered . | . . . . . . . . Machines | -11 -10 -10 -10 -9 -8 -7 -7 ---------- Run | Yrd Mat Min Exi Min Mat Fac DSF Machines Disabled 2 | . . . . . 2 . . Max in Single Turn 1 | . . . . . 1 . . Machines Repaired . | . . . . . . . . Machines Dismantled . | . . . . . . . . Machines Sabotaged . | . . . . . . . . Overloaded Fab Kills . | . . . . . . . . Hacking | -11 -10 -10 -10 -9 -8 -7 -7 --------- Run | Yrd Mat Min Exi Min Mat Fac DSF Machines Accessed 10 | . 4 1 1 . 1 3 . Terminals 8 | . 4 1 . . 1 2 . Fabricators . | . . . . . . . . Repair Stations . | . . . . . . . . Recycling Units . | . . . . . . . . Scanalyzers 1 | . . . . . . 1 . Garrison Access . | . . . . . . . . Total Hacks 24 | . 11 3 1 . 5 4 . Successful 6 | . 2 . 1 . 2 1 . Failed 18 | . 9 3 . . 3 3 . Catastrophic 6 | . 3 1 . . 1 1 . Database Lockouts . | . . . . . . . . Manual 19 | . 9 3 1 . 5 1 . Terminals 21 | . 11 3 . . 5 2 . Fabricators . | . . . . . . . . Repair Stations . | . . . . . . . . Recycling Units . | . . . . . . . . Scanalyzers 2 | . . . . . . 2 . Garrison Access . | . . . . . . . . Terminal Hacks 4 | . 1 . 1 . 1 1 . Open DSF 1 | . . . . . . 1 . Branch Access Points 1 | . 1 . . . . . . Zone Layout 1 | . . . . . 1 . . Proto ID Catalog 1 | . . . 1 . . . . Fabricator Hacks . | . . . . . . . . Repair Station Hacks . | . . . . . . . . Recycling Unit Hacks . | . . . . . . . . Scanalyzer . | . . . . . . . . Garrison Access Hacks . | . . . . . . . . Unauthorized Hacks 2 | . 1 . . . 1 . . Terminals 2 | . 1 . . . 1 . . Botnet 2 | . 1 . . . 1 . . Fabricators . | . . . . . . . . Repair Stations . | . . . . . . . . Recycling Units . | . . . . . . . . Scanalyzers . | . . . . . . . . Garrison Access . | . . . . . . . . Data Cores Recovered . | . . . . . . . . Used . | . . . . . . . . Hacking Detections 8 | . 4 1 . . 1 2 . Full Trace Events 4 | . 3 . . . 1 . . Feedback Events . | . . . . . . . . Feedback Blocked . | . . . . . . . . Robot Schematics Acquired . | . . . . . . . . Robots Built . | . . . . . . . . Authchips . | . . . . . . . . Time . | . . . . . . . . Total Robot Build Rating . | . . . . . . . . Part Schematics Acquired . | . . . . . . . . Parts Built . | . . . . . . . . Authchips . | . . . . . . . . Time . | . . . . . . . . Total Part Build Rating . | . . . . . . . . Parts Repaired . | . . . . . . . . Time . | . . . . . . . . Parts Recycled . | . . . . . . . . Recycled Matter . | . . . . . . . . Retrieved Matter . | . . . . . . . . Retrieved Components . | . . . . . . . . Parts Scanalyzed . | . . . . . . . . Part Schematics Acquired . | . . . . . . . . Parts Damaged . | . . . . . . . . Bothacking | -11 -10 -10 -10 -9 -8 -7 -7 ------------ Run | Yrd Mat Min Exi Min Mat Fac DSF Used RIF Installer . | . . . . . . . . Robots Hacked . | . . . . . . . . Non-combat . | . . . . . . . . Combat . | . . . . . . . . Robot Hacks Applied . | . . . . . . . . Relay Couplers Released . | . . . . . . . . Fabnet Peak Effective % . | . . . . . . . . Robots Rewired . | . . . . . . . . Allies Hacked . | . . . . . . . . Hacks Repelled . | . . . . . . . . Allies | -11 -10 -10 -10 -9 -8 -7 -7 -------- Run | Yrd Mat Min Exi Min Mat Fac DSF Total Allies . | . . . . . . . . Largest Group . | . . . . . . . . Highest-Rated Group . | . . . . . . . . Highest-Rated Ally . | . . . . . . . . Total Orders . | . . . . . . . . Ally Attacks . | . . . . . . . . Total Damage . | . . . . . . . . Kills . | . . . . . . . . Allies Corrupted . | . . . . . . . . Allies Melted . | . . . . . . . . Intel | -11 -10 -10 -10 -9 -8 -7 -7 ------- Run | Yrd Mat Min Exi Min Mat Fac DSF Active Infowar (turns) 3903 | . 1465 56 1170 19 712 333 148 Seismic 3902 | . 1465 56 1170 19 711 333 148 Cloaking 2 | . . . . . 2 . . Robot Analysis Total . | . . . . . . . . Derelict Logs Recovered . | . . . . . . . . Drone Launches . | . . . . . . . . Drone Recoveries . | . . . . . . . . Exploration | -11 -10 -10 -10 -9 -8 -7 -7 ------------- Run | Yrd Mat Min Exi Min Mat Fac DSF Turns Passed 4542 | 129 1591 56 1170 209 713 333 341 Spaces Moved 2146 | 67 755 35 583 101 365 165 75 Core 17 | 13 . . . . . . 4 Treads 1419 | 54 755 15 583 . . . 12 Legs 222 | . . . . . . 165 57 Wheels 488 | . . 20 . 101 365 . 2 Hover . | . . . . . . . . Flight . | . . . . . . . . Fastest Speed 50 | 50 160 110 160 105 120 190 145 Average Speed 169 | 138 160 131 200 137 137 190 237 Slowest Speed 1250 | 160 160 160 240 155 160 190 1250 Overloaded Moves . | . . . . . . . . Propulsion Burnouts . | . . . . . . . . Robots Hopped . | . . . . . . . . Potential Cave-ins . | . . . . . . . . Cave-ins Triggered 1 | . . . . . 1 . . Exploration Rate (%) 39 | 6 97 9 90 26 25 4 61 Regions Visited 7 Branch Regions 3 Pre-discovered Areas . | . . . . . . . . Known Exits Taken 2 | . 1 . . . . 1 . Unknown Exits Taken 5 | 1 . 1 1 1 1 . . Scrap Searched . | . . . . . . . . Spaces Dug 28 | . . . . . 28 . . Terrain Destroyed 318 | . . . . 36 282 . . Melee . | . . . . . . . . Projectile 2 | . . . . . 2 . . AOE 316 | . . . . 36 280 . . Terrain Rammed . | . . . . . . . . Walls Destroyed . | . . . . . . . . Machines Disabled . | . . . . . . . . Actions | -11 -10 -10 -10 -9 -8 -7 -7 --------- Run | Yrd Mat Min Exi Min Mat Fac DSF Total 2836 | 91 1086 42 589 137 535 187 169 Wait 361 | . 281 . . . 75 . 5 Move 2139 | 66 754 34 582 100 364 164 75 Hop . | . . . . . . . . Pick Up 74 | 13 9 2 3 1 32 10 4 Fast Attach 3 | . . . . . 2 . 1 Attach 45 | 6 2 1 . 9 9 2 16 Detach 1 | . . . . . 1 . . Swap 10 | . 1 1 1 . 3 2 2 Drop 32 | . 6 2 3 . 12 8 1 Fire 146 | 6 25 2 . 27 37 . 49 Melee 9 | . . . . . . . 9 Ram . | . . . . . . . . Kick 1 | . . . . . . 1 . Crush 8 | . 8 . . . . . . Escape Stasis 7 | . . . . . . . 7 Rewire . | . . . . . . . . Trap . | . . . . . . . . Miscellaneous . | . . . . . . . . Route ------- -11/Scrapyard -10/Materials (discovered 5 exits: [*Mat x3] / *Min x2) -10/Mines -10/Exiles -9/Mines -8/Materials -7/Factory -7/DSF (discovered 1 exit: [*Fac]) History --------- Turn | Location | Event 3 | -11/Scrapyard | Discovered new exit (range 16) 130 | -11/Scrapyard | Entered Materials 145 | -10/Materials | Discovered new exit (range 7) 215 | -10/Materials | Met 8R-AWN 228 | -10/Materials | Discovered new exit (range 8) 283 | -10/Materials | Discovered new exit (range 14) 303 | -10/Materials | Build established: Mutant 357 | -10/Materials | Identified exit to Mines 679 | -10/Materials | Discovered new exit (range 3) 904 | -10/Materials | Discovered new exit (range 12) 1721 | -10/Materials | Entered Mines 1724 | -10/Mines | Followed 8R-AWN into the Mines 1770 | -10/Mines | Discovered new exit (range 5) 1777 | -10/Mines | Entered Exiles 1817 | -10/Exiles | Welcomed by 8R-AWN 1846 | -10/Exiles | Met EX-HEX 1907 | -10/Exiles | Met EX-BIN 1925 | -10/Exiles | Met EX-DEC 2052 | -10/Exiles | Aligned with FarCom system 2054 | -10/Exiles | Given EX-Vault access code 2098 | -10/Exiles | Opened EX-Vault 2140 | -10/Exiles | Warned to stay clear of 0b10 Research branches 2340 | -10/Exiles | Visited The Gauntlet 2690 | -10/Exiles | Found Cloak of Protection 2918 | -10/Exiles | Discovered new exit (range 14) 2947 | -10/Exiles | Left Exiles lab with Cloak of Protection 2947 | -10/Exiles | Entered Mines 2960 | -9/Mines | Core integrity fell below 50% 2980 | -9/Mines | Met a Derelict bent on vengeance 3040 | -9/Mines | Lost 9 parts (1p2n2u4w) 3043 | -9/Mines | Core integrity fell below 20% 3071 | -9/Mines | Discovered new exit (range 10) 3156 | -9/Mines | Entered Materials 3156 | -8/Materials | Evolved 4 slots: Power x1, Utility x3 3672 | -8/Materials | Crushed by falling debris 3735 | -8/Materials | Discovered new exit (range 16) 3869 | -8/Materials | Entered Factory 3869 | -7/Factory | Evolved 2 slots: Propulsion x2 4129 | -7/Factory | Identified exit to DSF 4202 | -7/Factory | Entered DSF 4246 | -7/DSF | Discovered new exit (range 15) 4266 | -7/DSF | Additional patrols routed to DSF 4452 | -7/DSF | Lost 12 parts (5n5u2w) 4462 | -7/DSF | Core integrity fell below 50% 4516 | -7/DSF | Core integrity fell below 20% 4543 | -7/DSF | Lost 8 parts (1p1n3u3w) 4543 | -7/DSF | Destroyed by G-47 Trooper with Particle Gun Last Messages --------------- 04483_ Knocked back. 04484_ H-61 Shepherd destroyed. 04486_ B-48 Gladiator destroyed. 04488_ G-47 Trooper destroyed. 04491_ Lyr. Light Armor Plating destroyed. 04492_ Acquired 59 matter. 04495_ Lyr. Light Armor Plating destroyed. 04498_ Flak Gun destroyed. 04505_ Slug penetrates G-47 Trooper. 04512_ Gauss Rifle destroyed. 04513_ Dropped Hcp. Storage Unit. 04516_ Acquired Lgt. Treads. 04523_ Acquired 17 matter. 04524_ Critical hit (Burn: +37). 04526_ C-30 ARC bursts open, deploying its payload. 04526_ S-27 Virus unfolds itself. 04528_ G-47 Trooper destroyed. 04530_ Acquired 55 matter. 04543_ Minigun destroyed. Map ----- +----------------------------------------------------+ | ???????#= #????????????????????????????????? | | ???????#= #????????????????????????????????? | | ???????## ###????????????????????????????????? | | ???????# #????????????????????????????????? | | ???????# #????????????????????????????????? | | ???????# #????????????????????????????????? | | ??????### ##########?????????????????????????? | | ??????# #?!!!#!!!#?????????????????????????? | | ??????# ] ##!!!"!!!## ??????????????????????? | | ??????#]] ???????????????????? | | ??????#]] ???????????????????? | | ??????#^] ???????????????????? | | ??????#]] ##!!!#***##l ???????????????????? | | ??????#]] ##!!!#?**#?# #???????????????????? | | ??????### #""###???###s ###?????????????????? | | ???????#! #???????!! [[#?????????????????? | | ???????#! #????????! [[#?????????????????? | | ???????#!* #????????! [[??????????????????? | | ???????#"^ "##??????### ###?????????????????? | | ???????#! #??????# #?????????????????? | | ???????#!% #????### #?????????????????? | | ???????## *########;# g ???##?????????????? | | ??????##%% "##!!; !;## ##??!!#?????????????? | | ????###""= %#;!!; !!;## ;##!!!# ## "?????? | | ???#""""%%[!=/ s % ! "?????? | | ???#"##%%< %%%= s%* @% ! "?????? | | ??????#"%"""#;[ #[ g; !!!!!!#!!!#!!##""???????? | | ??????#"""""####;####!!!!!!!#??##?????????????? | | ??????####"##??##???#####;###?????????????????? | | ?????????#"#????????????###???????????????????? | | ?????????""#??????????????????????????????????? | | ?????????##???????????????????????????????????? | | ??????????????????????????????????????????????? | | ??????????????????????????????????????????????? | | ??????????????????????????????????????????????? | | ??????????????????????????????????????????????? | | | | | | | | | | | | | | | | | | | | | | | | | | | | | +----------------------------------------------------+ Best States ------------- Heat Dissipation 34 Energy Generation 27 Energy Capacity 480 Matter Stores 300 Matter Capacity 300 Sight Range 16 Terrain Scan Density 10 Armor Coverage 675 Core Shielding 20 Evasion (%) 50 Recoil Reduction 2 Trap Extractor Capacity 6 Item Schematics ----------------- None Robot Schematics ------------------ None Fabricated ------------ Nothing Repaired ---------- Nothing Alien Tech Used ----------------- None Achievements -------------- None Challenges ------------ None Game ------ Seed DisassembledMiningEngine Manual? 0 Play Time 00:40:20 Cumulative 82.0 hours Start 2025.08.01 @ 09:35:59 End 2025.08.01 @ 10:16:58 Sessions 1 Manual Loads 0 Difficulty Rogue Special Mode None Game No. 160 Rogue 160 Adventurer 0 Explorer 0 Win Type - Total 1 Types 1/0/0/0/0/0/0/0/0/0 Lore% 57 Gallery% 54 Achievement% 41 Wizard Run 0 Options --------- Layout 1 ASCII 0 Keyboard 0 Movement Mouse Keybinds 0 Fullscreen 1 Font 24/Smallcaps Map View 50x40 Zoom Use 0% Tactical HUD 1 Map Filters NONE Filters NONE Steam 1 RUN: 4dd8b00a-c4e0-4dc9-b5c0-dcfd77f8a0ca